[Event "Late-Titled-Tuesday-Blitz-September-12-2023"]
[Site "Chess.com"]
[Date "2023.09.12"]
[Round "7"]
[White "Hikaru"]
[Black "TigrVShlyape"]
[Result "1-0"]
[WhiteElo "3211"]
[BlackElo "2959"]
[TimeControl "180+1"]
[EndTime "15:15:33 PDT"]
[Termination "Hikaru won by resignation"]

1. a3 {[%clk 0:03:00.9]} 1... d5 {[%clk 0:02:59.2]} 2. Nf3 {[%clk 0:02:58.7]}
2... Bf5 {[%clk 0:02:59.6]} 3. c4 {[%clk 0:02:58.7]} 3... dxc4 {[%clk 0:02:33]}
4. Qa4+ {[%clk 0:02:57.5]} 4... c6 {[%clk 0:02:29.2]} 5. Qxc4 {[%clk 0:02:57.3]}
5... Nf6 {[%clk 0:02:26.4]} 6. d3 {[%clk 0:02:55.9]} 6... e6 {[%clk 0:02:24.5]}
7. g3 {[%clk 0:02:54.3]} 7... Nbd7 {[%clk 0:02:12.7]} 8. Bg2 {[%clk 0:02:53.8]}
8... Be7 {[%clk 0:02:09.9]} 9. b3 {[%clk 0:02:51.8]} 9... O-O {[%clk 0:02:09.3]}
10. Bb2 {[%clk 0:02:52]} 10... h6 {[%clk 0:02:08.6]} 11. O-O {[%clk 0:02:51.9]}
11... Bh7 {[%clk 0:02:04.4]} 12. Nbd2 {[%clk 0:02:50.3]} 12... a5 {[%clk
0:02:03]} 13. Qc2 {[%clk 0:02:48.9]} 13... Nd5 {[%clk 0:01:58.4]} 14. e4 {[%clk
0:02:48.1]} 14... Nc7 {[%clk 0:01:54.5]} 15. d4 {[%clk 0:02:48.6]} 15... Nd5
{[%clk 0:01:48]} 16. Rfe1 {[%clk 0:02:46.2]} 16... N5f6 {[%clk 0:01:47.2]} 17.
Rad1 {[%clk 0:02:45.7]} 17... Qb8 {[%clk 0:01:43.2]} 18. Nc4 {[%clk 0:02:45.4]}
18... Rd8 {[%clk 0:01:43.1]} 19. Nfe5 {[%clk 0:02:34.7]} 19... Qc7 {[%clk
0:01:41.1]} 20. Nd3 {[%clk 0:02:33.4]} 20... Nb6 {[%clk 0:01:32.8]} 21. Nd2
{[%clk 0:02:28.3]} 21... Nbd7 {[%clk 0:01:29.4]} 22. Rc1 {[%clk 0:02:28.2]}
22... Qb8 {[%clk 0:01:27.1]} 23. Qd1 {[%clk 0:02:16.3]} 23... Bf8 {[%clk
0:01:25.9]} 24. Qe2 {[%clk 0:02:16.7]} 24... Qa7 {[%clk 0:01:22.5]} 25. h3
{[%clk 0:02:15.9]} 25... Rac8 {[%clk 0:01:19.1]} 26. Qe3 {[%clk 0:02:15.8]}
26... Re8 {[%clk 0:01:16.6]} 27. Nc4 {[%clk 0:02:14.8]} 27... b6 {[%clk
0:00:57.9]} 28. Nf4 {[%clk 0:01:35.3]} 28... b5 {[%clk 0:00:53]} 29. Nd2 {[%clk
0:01:31.2]} 29... e5 {[%clk 0:00:53]} 30. Nd3 {[%clk 0:01:27.8]} 30... exd4
{[%clk 0:00:48.8]} 31. Bxd4 {[%clk 0:01:28.7]} 31... c5 {[%clk 0:00:47.6]} 32.
Bb2 {[%clk 0:01:26.2]} 32... Qb8 {[%clk 0:00:47.1]} 33. e5 {[%clk 0:01:11.4]}
33... Bxd3 {[%clk 0:00:45.6]} 34. Qxd3 {[%clk 0:01:10.4]} 34... Nxe5 {[%clk
0:00:46.2]} 35. Bxe5 {[%clk 0:01:07.3]} 35... Rxe5 {[%clk 0:00:46.4]} 36. Rxe5
{[%clk 0:01:07.7]} 36... Qxe5 {[%clk 0:00:46.5]} 37. Qxb5 {[%clk 0:01:08.4]}
37... Qb2 {[%clk 0:00:45.1]} 38. Rd1 {[%clk 0:01:06.8]} 38... Qc2 {[%clk
0:00:42.8]} 39. Bf3 {[%clk 0:00:57]} 39... Rd8 {[%clk 0:00:31.9]} 40. Qe2 {[%clk
0:00:55.3]} 40... Rd4 {[%clk 0:00:28.8]} 41. a4 {[%clk 0:00:41]} 41... g6 {[%clk
0:00:26]} 42. Kg2 {[%clk 0:00:34.6]} 42... Kg7 {[%clk 0:00:25.5]} 43. Qe1 {[%clk
0:00:28.5]} 43... Qc3 {[%clk 0:00:22.3]} 44. Bc6 {[%clk 0:00:18.1]} 44... h5
{[%clk 0:00:21.2]} 45. Nf3 {[%clk 0:00:16]} 45... Qxe1 {[%clk 0:00:20.1]} 46.
Rxe1 {[%clk 0:00:16.2]} 46... Rd3 {[%clk 0:00:19.7]} 47. Rb1 {[%clk 0:00:16.4]}
47... Bd6 {[%clk 0:00:18.8]} 48. Bb5 {[%clk 0:00:16]} 48... Rc3 {[%clk
0:00:18.4]} 49. Bc4 {[%clk 0:00:16.3]} 49... Ne4 {[%clk 0:00:17.8]} 50. Rb2
{[%clk 0:00:14.5]} 50... f5 {[%clk 0:00:17.4]} 51. Ng1 {[%clk 0:00:15]} 51...
Kf6 {[%clk 0:00:17]} 52. Ne2 {[%clk 0:00:14.9]} 52... Be5 {[%clk 0:00:12.2]} 53.
Nxc3 {[%clk 0:00:15.1]} 53... Bxc3 {[%clk 0:00:12.7]} 54. Re2 {[%clk 0:00:15.5]}
54... Bd4 {[%clk 0:00:12.3]} 55. Bd5 {[%clk 0:00:13.1]} 55... Nc3 {[%clk
0:00:11.9]} 56. Re6+ {[%clk 0:00:13.4]} 56... Kg7 {[%clk 0:00:11.1]} 57. Bf3
{[%clk 0:00:08.8]} 57... Na2 {[%clk 0:00:06.9]} 58. Ra6 {[%clk 0:00:08.6]} 58...
Bc3 {[%clk 0:00:07.3]} 59. Ra7+ {[%clk 0:00:08.7]} 59... Kf6 {[%clk 0:00:06.8]}
60. Bd5 {[%clk 0:00:08.5]} 60... g5 {[%clk 0:00:07.2]} 61. f4 {[%clk 0:00:05.2]}
61... gxf4 {[%clk 0:00:07.1]} 62. gxf4 {[%clk 0:00:06.1]} 62... Nb4 {[%clk
0:00:05.9]} 63. Bc4 {[%clk 0:00:06.1]} 63... Nc2 {[%clk 0:00:06.2]} 64. Ra6+
{[%clk 0:00:05.5]} 64... Kg7 {[%clk 0:00:05.9]} 65. Rc6 {[%clk 0:00:05.2]} 65...
Bb4 {[%clk 0:00:06.3]} 66. Kf2 {[%clk 0:00:05.2]} 66... Nd4 {[%clk 0:00:06.6]}
67. Ra6 {[%clk 0:00:05.3]} 67... h4 {[%clk 0:00:07]} 68. Bd3 {[%clk 0:00:05.2]}
68... Bd2 {[%clk 0:00:06.5]} 69. Bc4 {[%clk 0:00:03.3]} 69... Bb4 {[%clk
0:00:06]} 70. Ke3 {[%clk 0:00:04.1]} 70... Be1 {[%clk 0:00:06.1]} 71. Kd3 {[%clk
0:00:04.4]} 71... Kh7 {[%clk 0:00:05.3]} 72. Bd5 {[%clk 0:00:04.9]} 72... Kg7
{[%clk 0:00:05.2]} 73. Kc4 {[%clk 0:00:05.6]} 73... Bb4 {[%clk 0:00:04.8]} 74.
Ra7+ {[%clk 0:00:05.9]} 74... Kg6 {[%clk 0:00:04.5]} 75. Ra8 {[%clk 0:00:06.1]}
75... Kg7 {[%clk 0:00:04.6]} 76. Rg8+ {[%clk 0:00:06.2]} 76... Kf6 {[%clk
0:00:04.5]} 77. Rh8 {[%clk 0:00:06.1]} 77... Nc2 {[%clk 0:00:04.8]} 78. Kb5
{[%clk 0:00:05.4]} 78... Nd4+ {[%clk 0:00:05]} 79. Kb6 {[%clk 0:00:05.2]} 79...
Nc2 {[%clk 0:00:03]} 80. Rxh4 {[%clk 0:00:04.6]} 80... Ne3 {[%clk 0:00:03.6]}
81. Bc4 {[%clk 0:00:04.8]} 81... Ng2 {[%clk 0:00:03.9]} 82. Rh6+ {[%clk
0:00:05]} 82... Kg7 {[%clk 0:00:04.4]} 83. Rh5 {[%clk 0:00:05.7]} 83... Kg6
{[%clk 0:00:04.5]} 84. Rg5+ {[%clk 0:00:05.8]} 84... Kf6 {[%clk 0:00:04.5]} 85.
Rxg2 {[%clk 0:00:06.7]} 1-0

[Event "Late-Titled-Tuesday-Blitz-September-12-2023"]
[Site "Chess.com"]
[Date "2023.09.12"]
[Round "7"]
[White "Bauman_Guy"]
[Black "Polish_fighter3000"]
[Result "0-1"]
[WhiteElo "2903"]
[BlackElo "3084"]
[TimeControl "180+1"]
[EndTime "15:15:43 PDT"]
[Termination "Polish_fighter3000 won by resignation"]

1. e4 {[%clk 0:03:00.9]} 1... c5 {[%clk 0:02:58.7]} 2. Nf3 {[%clk 0:03:01.1]}
2... d6 {[%clk 0:02:59.2]} 3. d4 {[%clk 0:03:01.7]} 3... cxd4 {[%clk 0:03:00.1]}
4. Nxd4 {[%clk 0:03:02.6]} 4... Nf6 {[%clk 0:03:00.6]} 5. Nc3 {[%clk 0:03:03.3]}
5... a6 {[%clk 0:03:00.9]} 6. h3 {[%clk 0:03:03.8]} 6... Nc6 {[%clk 0:02:59.1]}
7. g3 {[%clk 0:03:01.9]} 7... Nxd4 {[%clk 0:02:51.4]} 8. Qxd4 {[%clk 0:03:02.8]}
8... e5 {[%clk 0:02:51.7]} 9. Qd2 {[%clk 0:02:58.1]} 9... Be7 {[%clk 0:02:48.9]}
10. Bg2 {[%clk 0:02:58.3]} 10... b5 {[%clk 0:02:48.3]} 11. b3 {[%clk 0:02:54.7]}
11... Bb7 {[%clk 0:02:48.1]} 12. Bb2 {[%clk 0:02:54.2]} 12... Rc8 {[%clk
0:02:48.3]} 13. O-O {[%clk 0:02:53]} 13... O-O {[%clk 0:02:48]} 14. Rac1 {[%clk
0:02:51.1]} 14... Qb6 {[%clk 0:02:30.2]} 15. Rfd1 {[%clk 0:02:32.9]} 15... h6
{[%clk 0:02:29.3]} 16. Kh2 {[%clk 0:02:32.2]} 16... Rc7 {[%clk 0:02:28.3]} 17.
Ba3 {[%clk 0:02:09.9]} 17... Rfc8 {[%clk 0:02:07.9]} 18. Bb2 {[%clk 0:02:07]}
18... Rxc3 {[%clk 0:02:04.8]} 19. Bxc3 {[%clk 0:02:05.3]} 19... Nxe4 {[%clk
0:02:05.4]} 20. Bxe4 {[%clk 0:01:59.3]} 20... Bxe4 {[%clk 0:02:06.3]} 21. Qe2
{[%clk 0:01:45]} 21... Rxc3 {[%clk 0:02:03.3]} 22. Qxe4 {[%clk 0:01:44.9]} 22...
Qxf2+ {[%clk 0:02:03.7]} 23. Qg2 {[%clk 0:01:45.1]} 23... Qc5 {[%clk 0:01:51.3]}
24. h4 {[%clk 0:01:43.5]} 24... h5 {[%clk 0:01:46.5]} 25. Rd5 {[%clk 0:01:34.6]}
25... Qc8 {[%clk 0:01:44.8]} 26. Rf1 {[%clk 0:00:59.1]} 26... Rxc2 {[%clk
0:01:40.6]} 27. Rf2 {[%clk 0:00:59.4]} 27... Rc3 {[%clk 0:01:41.1]} 28. Rdd2
{[%clk 0:00:49.8]} 28... Qg4 {[%clk 0:01:36.2]} 29. Rc2 {[%clk 0:00:50]} 29...
Re3 {[%clk 0:01:23.9]} 30. Qh3 {[%clk 0:00:49.2]} 30... Qg6 {[%clk 0:01:16.2]}
31. Rce2 {[%clk 0:00:27.9]} 31... Rc3 {[%clk 0:01:11.2]} 32. Qg2 {[%clk
0:00:26.1]} 32... f5 {[%clk 0:01:06.2]} 33. Rc2 {[%clk 0:00:23.5]} 33... Rxc2
{[%clk 0:00:50.2]} 34. Rxc2 {[%clk 0:00:24.4]} 34... e4 {[%clk 0:00:50.8]} 35.
Qd2 {[%clk 0:00:23.7]} 35... Qe6 {[%clk 0:00:44.3]} 36. Rc6 {[%clk 0:00:18.7]}
36... e3 {[%clk 0:00:43.1]} 37. Qe2 {[%clk 0:00:18.6]} 37... Qe4 {[%clk
0:00:27.7]} 38. Rc8+ {[%clk 0:00:17.4]} 38... Bf8 {[%clk 0:00:28.2]} 39. a4
{[%clk 0:00:11.7]} 39... f4 {[%clk 0:00:22.3]} 40. gxf4 {[%clk 0:00:03.4]} 40...
Qxf4+ {[%clk 0:00:23.2]} 41. Kg2 {[%clk 0:00:03.9]} 41... bxa4 {[%clk
0:00:03.2]} 42. bxa4 {[%clk 0:00:04.8]} 42... Qxa4 {[%clk 0:00:02.5]} 43. Qf3
{[%clk 0:00:04.5]} 43... Qg4+ {[%clk 0:00:02.7]} 44. Qxg4 {[%clk 0:00:04]} 44...
hxg4 {[%clk 0:00:03.6]} 45. Re8 {[%clk 0:00:04.5]} 45... Kf7 {[%clk 0:00:03.3]}
46. Rxe3 {[%clk 0:00:04.7]} 46... Be7 {[%clk 0:00:03.2]} 47. Re4 {[%clk
0:00:04.9]} 47... Bxh4 {[%clk 0:00:03]} 48. Rxg4 {[%clk 0:00:05.6]} 48... Bd8
{[%clk 0:00:03.7]} 49. Ra4 {[%clk 0:00:04.8]} 49... a5 {[%clk 0:00:03.9]} 50.
Kf3 {[%clk 0:00:05.7]} 50... Ke6 {[%clk 0:00:04.2]} 51. Ke4 {[%clk 0:00:05.6]}
51... d5+ {[%clk 0:00:04.3]} 52. Kd4 {[%clk 0:00:06.1]} 52... Kd6 {[%clk
0:00:03.5]} 53. Ra2 {[%clk 0:00:05]} 53... g5 {[%clk 0:00:03.7]} 54. Rh2 {[%clk
0:00:04.1]} 54... Bf6+ {[%clk 0:00:02.8]} 55. Kd3 {[%clk 0:00:04.6]} 55... Kc5
{[%clk 0:00:02.3]} 56. Rf2 {[%clk 0:00:04.2]} 56... Be5 {[%clk 0:00:02.2]} 57.
Rc2+ {[%clk 0:00:03.9]} 57... Kb5 {[%clk 0:00:02.3]} 58. Rc8 {[%clk 0:00:03.6]}
58... g4 {[%clk 0:00:02.3]} 59. Re8 {[%clk 0:00:03.7]} 59... Bd6 {[%clk
0:00:02]} 60. Rd8 {[%clk 0:00:04.2]} 60... Kc6 {[%clk 0:00:02.4]} 61. Rc8+
{[%clk 0:00:03.5]} 61... Bc7 {[%clk 0:00:02.9]} 62. Rg8 {[%clk 0:00:02.2]} 62...
g3 {[%clk 0:00:03.3]} 63. Kd4 {[%clk 0:00:02.8]} 63... a4 {[%clk 0:00:03.1]} 64.
Kc3 {[%clk 0:00:02.3]} 64... Bd6 {[%clk 0:00:02.1]} 65. Rg6 {[%clk 0:00:01.9]}
65... Kc5 {[%clk 0:00:01.8]} 66. Kd3 {[%clk 0:00:02.6]} 66... a3 {[%clk
0:00:02]} 67. Kc3 {[%clk 0:00:03.1]} 67... d4+ {[%clk 0:00:01.7]} 68. Kb3 {[%clk
0:00:03.4]} 68... Kd5 {[%clk 0:00:02.4]} 69. Rg4 {[%clk 0:00:01.9]} 69... d3
{[%clk 0:00:02.1]} 70. Kc3 {[%clk 0:00:02.3]} 70... a2 {[%clk 0:00:02.4]} 71.
Ra4 {[%clk 0:00:01.5]} 71... g2 {[%clk 0:00:02.4]} 72. Kxd3 {[%clk 0:00:01.8]}
72... g1=Q {[%clk 0:00:02.6]} 73. Ra5+ {[%clk 0:00:02.7]} 73... Ke6 {[%clk
0:00:02.9]} 74. Rxa2 {[%clk 0:00:03.6]} 74... Qg3+ {[%clk 0:00:03.3]} 75. Kc2
{[%clk 0:00:03.2]} 75... Qf2+ {[%clk 0:00:03.7]} 76. Kb3 {[%clk 0:00:04.1]}
76... Qb6+ {[%clk 0:00:04.2]} 77. Kc4 {[%clk 0:00:04.3]} 77... Qc5+ {[%clk
0:00:04.1]} 78. Kb3 {[%clk 0:00:05.2]} 78... Qd5+ {[%clk 0:00:04.6]} 79. Kb2
{[%clk 0:00:05.4]} 79... Be5+ {[%clk 0:00:05.1]} 80. Ka3 {[%clk 0:00:05.8]}
80... Qb5 {[%clk 0:00:05.3]} 81. Rc2 {[%clk 0:00:04.3]} 81... Kd5 {[%clk
0:00:03.5]} 82. Rd2+ {[%clk 0:00:04.1]} 82... Kc4 {[%clk 0:00:03]} 83. Rc2+
{[%clk 0:00:04.1]} 83... Bc3 {[%clk 0:00:03.6]} 0-1

[Event "Late-Titled-Tuesday-Blitz-September-12-2023"]
[Site "Chess.com"]
[Date "2023.09.12"]
[Round "7"]
[White "ahkashefi2800"]
[Black "Skagoogle"]
[Result "1/2-1/2"]
[WhiteElo "2621"]
[BlackElo "2781"]
[TimeControl "180+1"]
[EndTime "15:15:46 PDT"]
[Termination "Game drawn by repetition"]

1. d4 {[%clk 0:02:57.3]} 1... d5 {[%clk 0:02:58.5]} 2. Nf3 {[%clk 0:02:48.8]}
2... Nf6 {[%clk 0:02:57.1]} 3. Bf4 {[%clk 0:02:47.7]} 3... c5 {[%clk 0:02:55.7]}
4. c3 {[%clk 0:02:47.7]} 4... Nc6 {[%clk 0:02:54.3]} 5. e3 {[%clk 0:02:47.6]}
5... e6 {[%clk 0:02:54.6]} 6. Nbd2 {[%clk 0:02:46.3]} 6... Bd6 {[%clk
0:02:55.2]} 7. Bg3 {[%clk 0:02:45.6]} 7... O-O {[%clk 0:02:55.5]} 8. Bd3 {[%clk
0:02:42]} 8... Re8 {[%clk 0:02:53.4]} 9. Ne5 {[%clk 0:02:41.6]} 9... Bxe5 {[%clk
0:02:46.1]} 10. dxe5 {[%clk 0:02:41.6]} 10... Nd7 {[%clk 0:02:46.8]} 11. f4
{[%clk 0:02:37.4]} 11... f5 {[%clk 0:02:24.7]} 12. Bf2 {[%clk 0:02:26.8]} 12...
c4 {[%clk 0:02:12]} 13. Bc2 {[%clk 0:02:20.5]} 13... Nc5 {[%clk 0:02:12.2]} 14.
Nf3 {[%clk 0:02:18]} 14... b5 {[%clk 0:02:00.9]} 15. a3 {[%clk 0:02:11.8]} 15...
a5 {[%clk 0:01:59.9]} 16. O-O {[%clk 0:02:11.5]} 16... Rb8 {[%clk 0:01:40.9]}
17. Nd4 {[%clk 0:02:05.4]} 17... Nxd4 {[%clk 0:01:40.7]} 18. Qxd4 {[%clk
0:02:05.8]} 18... Qc7 {[%clk 0:01:36.9]} 19. h3 {[%clk 0:02:02]} 19... Ne4
{[%clk 0:01:22.4]} 20. Be1 {[%clk 0:01:49.9]} 20... Qb6 {[%clk 0:01:03.1]} 21.
Bxe4 {[%clk 0:01:41.2]} 21... fxe4 {[%clk 0:01:02.9]} 22. Qxb6 {[%clk
0:01:28.4]} 22... Rxb6 {[%clk 0:01:02.8]} 23. g4 {[%clk 0:01:29.3]} 23... g6
{[%clk 0:01:02.6]} 24. Kg2 {[%clk 0:01:29.2]} 24... Bd7 {[%clk 0:01:02.8]} 25.
Kg3 {[%clk 0:01:28.4]} 25... Kf7 {[%clk 0:01:01]} 26. Rc1 {[%clk 0:01:27.3]}
26... Rh8 {[%clk 0:00:53.9]} 27. Rc2 {[%clk 0:01:26.1]} 27... Rbb8 {[%clk
0:00:51.8]} 28. Rd2 {[%clk 0:01:01.2]} 28... h5 {[%clk 0:00:51.1]} 29. Rc2
{[%clk 0:00:44.9]} 29... Rh7 {[%clk 0:00:50.5]} 30. Rh2 {[%clk 0:00:16.7]} 30...
Rbh8 {[%clk 0:00:50.1]} 31. Rfh1 {[%clk 0:00:16.7]} 31... Ke8 {[%clk 0:00:43.5]}
32. Kg2 {[%clk 0:00:13]} 32... Kd8 {[%clk 0:00:41.9]} 33. h4 {[%clk 0:00:11.5]}
33... hxg4 {[%clk 0:00:40.5]} 34. Kg3 {[%clk 0:00:11.7]} 34... Rh5 {[%clk
0:00:37.8]} 35. Kxg4 {[%clk 0:00:12.1]} 35... Be8 {[%clk 0:00:38.5]} 36. Rg1
{[%clk 0:00:11.6]} 36... Kd7 {[%clk 0:00:35.6]} 37. Kg3 {[%clk 0:00:11]} 37...
Kc6 {[%clk 0:00:34.1]} 38. Kg2 {[%clk 0:00:11.2]} 38... Rf5 {[%clk 0:00:21.1]}
39. Kf1 {[%clk 0:00:10.4]} 39... Rhh5 {[%clk 0:00:21.7]} 40. Rhg2 {[%clk
0:00:10.5]} 40... Kd7 {[%clk 0:00:20.5]} 41. Ke2 {[%clk 0:00:10.7]} 41... Bf7
{[%clk 0:00:20.8]} 42. Rg5 {[%clk 0:00:08.3]} 42... Ke8 {[%clk 0:00:15.3]} 43.
Bf2 {[%clk 0:00:08]} 43... Kf8 {[%clk 0:00:10.8]} 44. R1g2 {[%clk 0:00:07.8]}
44... Kg7 {[%clk 0:00:11.1]} 45. Be1 {[%clk 0:00:08]} 45... Be8 {[%clk
0:00:11.7]} 46. Bf2 {[%clk 0:00:07.4]} 46... Kh7 {[%clk 0:00:12.2]} 47. Rg1
{[%clk 0:00:07.4]} 47... Kg7 {[%clk 0:00:10.1]} 48. R5g2 {[%clk 0:00:07.6]}
48... Bf7 {[%clk 0:00:09.3]} 49. Be1 {[%clk 0:00:05.5]} 49... Rh8 {[%clk
0:00:08.2]} 50. Rg5 {[%clk 0:00:05.4]} 50... Rxg5 {[%clk 0:00:07.8]} 51. fxg5
{[%clk 0:00:05.9]} 51... Kf8 {[%clk 0:00:06.5]} 52. Rf1 {[%clk 0:00:06]} 52...
Ke7 {[%clk 0:00:07]} 53. Rf6 {[%clk 0:00:06.4]} 53... Be8 {[%clk 0:00:07.7]} 54.
Kf1 {[%clk 0:00:06.1]} 54... Rf8 {[%clk 0:00:07.4]} 55. Kg2 {[%clk 0:00:05.9]}
55... Rh8 {[%clk 0:00:07.8]} 56. Kg3 {[%clk 0:00:05.8]} 56... Rh5 {[%clk
0:00:07.7]} 57. Kf4 {[%clk 0:00:06]} 57... Rh7 {[%clk 0:00:08.2]} 58. Kg4 {[%clk
0:00:05.9]} 58... Rh5 {[%clk 0:00:08]} 59. Bg3 {[%clk 0:00:05.9]} 59... Rh7
{[%clk 0:00:07.8]} 60. Rf2 {[%clk 0:00:06.1]} 60... Rf7 {[%clk 0:00:07.2]} 61.
Rf6 {[%clk 0:00:06.5]} 61... Rh7 {[%clk 0:00:07.4]} 62. Be1 {[%clk 0:00:06.7]}
62... a4 {[%clk 0:00:07.1]} 63. Bg3 {[%clk 0:00:06.6]} 63... Rh5 {[%clk
0:00:07.3]} 64. Rf2 {[%clk 0:00:05.2]} 64... Rh7 {[%clk 0:00:07.5]} 65. Rf6
{[%clk 0:00:05.3]} 65... Rh5 {[%clk 0:00:07.4]} 66. Kf4 {[%clk 0:00:05]} 66...
Rh7 {[%clk 0:00:07.4]} 67. Bf2 {[%clk 0:00:05.3]} 67... Rh5 {[%clk 0:00:07]} 68.
Kg3 {[%clk 0:00:05.9]} 68... Rh7 {[%clk 0:00:07.3]} 69. Kg2 {[%clk 0:00:05.9]}
69... Rh5 {[%clk 0:00:08]} 70. Bg3 {[%clk 0:00:06.4]} 70... Rh7 {[%clk
0:00:08.7]} 71. Rf1 {[%clk 0:00:04.8]} 71... Rf7 {[%clk 0:00:08.7]} 72. Rf6
{[%clk 0:00:02.8]} 72... Rh7 {[%clk 0:00:08.8]} 73. Bf2 {[%clk 0:00:02.7]} 73...
Rh5 {[%clk 0:00:09.1]} 74. Kh3 {[%clk 0:00:03.3]} 74... Rh7 {[%clk 0:00:09.3]}
75. Kg4 {[%clk 0:00:04]} 75... Rh5 {[%clk 0:00:09.7]} 76. Bg3 {[%clk 0:00:04.3]}
76... Rh7 {[%clk 0:00:10]} 77. Rf4 {[%clk 0:00:04.2]} 77... Rh5 {[%clk
0:00:10.5]} 78. Rf6 {[%clk 0:00:03.1]} 78... Rh7 {[%clk 0:00:10.6]} 79. Kf4
{[%clk 0:00:03.6]} 79... Rh5 {[%clk 0:00:10.7]} 80. Bf2 {[%clk 0:00:03]} 80...
Rh8 {[%clk 0:00:11]} 81. Kg3 {[%clk 0:00:03.3]} 81... Rh7 {[%clk 0:00:11.5]} 82.
Be1 {[%clk 0:00:03.5]} 82... Rh5 {[%clk 0:00:11.6]} 83. Bf2 {[%clk 0:00:03.9]}
83... Rh7 {[%clk 0:00:11.9]} 1/2-1/2

[Event "Late-Titled-Tuesday-Blitz-September-12-2023"]
[Site "Chess.com"]
[Date "2023.09.12"]
[Round "7"]
[White "GlavkonVVS"]
[Black "ArturoCaceres"]
[Result "0-1"]
[WhiteElo "2578"]
[BlackElo "2483"]
[TimeControl "180+1"]
[EndTime "15:15:55 PDT"]
[Termination "ArturoCaceres won on time"]

1. c4 {[%clk 0:03:00.9]} 1... Nf6 {[%clk 0:02:48.2]} 2. Nc3 {[%clk 0:03:01]}
2... e6 {[%clk 0:02:45.4]} 3. g3 {[%clk 0:03:01.4]} 3... d5 {[%clk 0:02:43.1]}
4. Bg2 {[%clk 0:03:01.7]} 4... c6 {[%clk 0:02:43.6]} 5. Nf3 {[%clk 0:03:01.6]}
5... Be7 {[%clk 0:02:44]} 6. O-O {[%clk 0:03:01.5]} 6... O-O {[%clk 0:02:44]} 7.
d3 {[%clk 0:03:02]} 7... b6 {[%clk 0:02:43.8]} 8. e4 {[%clk 0:03:02]} 8... Bb7
{[%clk 0:02:42.2]} 9. cxd5 {[%clk 0:02:56.7]} 9... cxd5 {[%clk 0:02:40.7]} 10.
e5 {[%clk 0:02:57.1]} 10... Nfd7 {[%clk 0:02:40.1]} 11. d4 {[%clk 0:02:57.7]}
11... Nc6 {[%clk 0:02:38.1]} 12. Be3 {[%clk 0:02:42.7]} 12... Na5 {[%clk
0:02:37.4]} 13. Qe2 {[%clk 0:02:35.6]} 13... Nc4 {[%clk 0:02:30]} 14. Rfc1
{[%clk 0:02:34.6]} 14... Rc8 {[%clk 0:02:28.6]} 15. h4 {[%clk 0:02:25.6]} 15...
Re8 {[%clk 0:02:22.5]} 16. h5 {[%clk 0:02:20.2]} 16... h6 {[%clk 0:02:15.6]} 17.
a4 {[%clk 0:02:02.1]} 17... Nf8 {[%clk 0:01:57.5]} 18. b3 {[%clk 0:01:50.9]}
18... Nxe3 {[%clk 0:01:56.6]} 19. Qxe3 {[%clk 0:01:51.2]} 19... Ba6 {[%clk
0:01:27.4]} 20. Bf1 {[%clk 0:01:48.7]} 20... Bxf1 {[%clk 0:01:27.2]} 21. Kxf1
{[%clk 0:01:49]} 21... Qd7 {[%clk 0:01:27.6]} 22. Ne2 {[%clk 0:01:41.6]} 22...
Rxc1+ {[%clk 0:01:24.9]} 23. Rxc1 {[%clk 0:01:41.3]} 23... Rc8 {[%clk
0:01:25.5]} 24. Nf4 {[%clk 0:01:34.4]} 24... Bd8 {[%clk 0:01:20.5]} 25. Rc3
{[%clk 0:01:29.1]} 25... Rxc3 {[%clk 0:01:17]} 26. Qxc3 {[%clk 0:01:29.2]} 26...
b5 {[%clk 0:01:17.6]} 27. Qb4 {[%clk 0:01:21.4]} 27... bxa4 {[%clk 0:01:12.5]}
28. bxa4 {[%clk 0:01:20.5]} 28... Qc6 {[%clk 0:01:08]} 29. Kg2 {[%clk
0:01:14.4]} 29... Nd7 {[%clk 0:01:07.7]} 30. Nd2 {[%clk 0:00:53.7]} 30... Qb6
{[%clk 0:01:03.9]} 31. Qc3 {[%clk 0:00:47.7]} 31... Qc7 {[%clk 0:01:03.3]} 32.
Qxc7 {[%clk 0:00:43.6]} 32... Bxc7 {[%clk 0:01:03.3]} 33. Nb3 {[%clk 0:00:44.2]}
33... Kf8 {[%clk 0:00:48.9]} 34. Nd3 {[%clk 0:00:43.9]} 34... Ke7 {[%clk
0:00:45.2]} 35. Nb4 {[%clk 0:00:43.6]} 35... Nb8 {[%clk 0:00:43.6]} 36. Kf3
{[%clk 0:00:40.2]} 36... Kd7 {[%clk 0:00:29.9]} 37. Nc5+ {[%clk 0:00:38.6]}
37... Kc8 {[%clk 0:00:30.3]} 38. Ke2 {[%clk 0:00:36.9]} 38... Ba5 {[%clk
0:00:30.4]} 39. Ncd3 {[%clk 0:00:29.4]} 39... Kc7 {[%clk 0:00:28.2]} 40. f4
{[%clk 0:00:28.3]} 40... Bxb4 {[%clk 0:00:19.7]} 41. Nxb4 {[%clk 0:00:28.5]}
41... Kb6 {[%clk 0:00:19.7]} 42. f5 {[%clk 0:00:21]} 42... Ka5 {[%clk
0:00:16.9]} 43. fxe6 {[%clk 0:00:17.1]} 43... fxe6 {[%clk 0:00:16.6]} 44. Nd3
{[%clk 0:00:17.2]} 44... Nd7 {[%clk 0:00:12.1]} 45. Nf4 {[%clk 0:00:16.5]} 45...
Nf8 {[%clk 0:00:12.5]} 46. Kd3 {[%clk 0:00:12.4]} 46... Kxa4 {[%clk 0:00:13.1]}
47. Kc3 {[%clk 0:00:12.5]} 47... Kb5 {[%clk 0:00:13.7]} 48. Nd3 {[%clk 0:00:13]}
48... a5 {[%clk 0:00:12.9]} 49. g4 {[%clk 0:00:13.6]} 49... Nd7 {[%clk
0:00:12.2]} 50. Nf4 {[%clk 0:00:13]} 50... Nf8 {[%clk 0:00:12.8]} 51. Nd3 {[%clk
0:00:13.3]} 51... Kb6 {[%clk 0:00:06.2]} 52. Nc5 {[%clk 0:00:13.1]} 52... Kc6
{[%clk 0:00:06.5]} 53. Kb3 {[%clk 0:00:13.1]} 53... Kb5 {[%clk 0:00:06.8]} 54.
Kc3 {[%clk 0:00:12.8]} 54... a4 {[%clk 0:00:07.3]} 55. Nd3 {[%clk 0:00:08]}
55... a3 {[%clk 0:00:07.2]} 56. Kb3 {[%clk 0:00:08]} 56... a2 {[%clk 0:00:07.6]}
57. Kxa2 {[%clk 0:00:06.9]} 57... Kc4 {[%clk 0:00:08.1]} 58. Nf4 {[%clk
0:00:07.4]} 58... Kxd4 {[%clk 0:00:07.1]} 59. g5 {[%clk 0:00:06]} 59... Kxe5
{[%clk 0:00:04]} 60. gxh6 {[%clk 0:00:06.1]} 60... gxh6 {[%clk 0:00:02.8]} 61.
Nd3+ {[%clk 0:00:06.3]} 61... Kf5 {[%clk 0:00:03.1]} 62. Kb3 {[%clk 0:00:06.1]}
62... Nh7 {[%clk 0:00:03]} 63. Kc3 {[%clk 0:00:05.9]} 63... Nf6 {[%clk
0:00:02.9]} 64. Kd4 {[%clk 0:00:06.2]} 64... Nxh5 {[%clk 0:00:03.6]} 65. Ne5
{[%clk 0:00:06.5]} 65... Nf4 {[%clk 0:00:02.5]} 66. Nf3 {[%clk 0:00:06.4]} 66...
Ne2+ {[%clk 0:00:02.2]} 67. Ke3 {[%clk 0:00:06.7]} 67... Ng3 {[%clk 0:00:03.1]}
68. Nd4+ {[%clk 0:00:06.1]} 68... Kf6 {[%clk 0:00:03.3]} 69. Kf3 {[%clk
0:00:05]} 69... Nf5 {[%clk 0:00:03.6]} 70. Nc6 {[%clk 0:00:04.8]} 70... e5
{[%clk 0:00:04.2]} 71. Kg4 {[%clk 0:00:04.8]} 71... Ng7 {[%clk 0:00:03.7]} 72.
Nb4 {[%clk 0:00:03.8]} 72... Ke6 {[%clk 0:00:03.5]} 73. Nc2 {[%clk 0:00:02.3]}
73... d4 {[%clk 0:00:03.4]} 74. Nb4 {[%clk 0:00:02]} 74... Nf5 {[%clk
0:00:02.3]} 75. Nd3 {[%clk 0:00:01.5]} 75... Nd6 {[%clk 0:00:01.9]} 76. Nc5+
{[%clk 0:00:01.5]} 76... Kd5 {[%clk 0:00:02.4]} 77. Nd7 {[%clk 0:00:01.9]} 77...
e4 {[%clk 0:00:02.6]} 78. Kf4 {[%clk 0:00:02]} 78... e3 {[%clk 0:00:02.5]} 79.
Nf6+ {[%clk 0:00:02.4]} 79... Kc4 {[%clk 0:00:02.3]} 80. Kf3 {[%clk 0:00:02.8]}
80... Kd3 {[%clk 0:00:02.3]} 81. Ng4 {[%clk 0:00:03.2]} 81... Nc4 {[%clk
0:00:02.1]} 82. Nxh6 {[%clk 0:00:02.6]} 82... e2 {[%clk 0:00:01.6]} 83. Kf2
{[%clk 0:00:03.1]} 83... Kd2 {[%clk 0:00:02.2]} 0-1